[Event "87th Spanish Championship 2022"]
[Site "Linares"]
[Date "2022.08.15"]
[Round "6.31"]
[White "Del Prado Rodriguez, Xulio"]
[Black "Rey Martinez, Jaime"]
[Result "1/2-1/2"]
[ECO "D27"]
[WhiteElo "2282"]
[BlackElo "2117"]
[Annotator "NA RC"]
[PlyCount "47"]
[EventDate "2022.08.11"]
[EventType "swiss"]
[EventCountry "ESP"]
[SourceTitle "playchess.com"]
[Source "ChessBase"]
[SourceQuality "1"]
[TimeControl "5400+30"]

1. d4 {[%emt 0:00:09]} d5 {[%emt 0:00:19]} 2. c4 {[%emt 0:00:33]} dxc4 {[%emt 0:00:38]} 3. Nf3 {[%emt 0:00:11]} Nf6 {[%emt 0:00:38]} 4. e3 {[%emt 0:00:18]} e6 {[%emt 0:00:27]} 5. Bxc4 {[%emt 0:00:08]} c5 {[%emt 0:00:29]} 6. O-O {[%emt 0:00:09]} a6 {[%emt 0:00:44]} 7. dxc5 {[%emt 0:00:08]} Qxd1 {[%emt 0:01:20]} 8. Rxd1 {[%emt 0:00:09]} Bxc5 {[%emt 0:00:04]} 9. Nfd2 {[%emt 0:00:11]} b5 {[%emt 0:06:15]} 10. Be2 {[%emt 0:00:34]} Bb7 {[%emt 0:00:33]} 11. a4 {[%emt 0:04:31]} bxa4 {[%emt 0:06:21]} 12. Nc3 {[%emt 0:06:05]} a3 {[%emt 0:06:29]} 13. bxa3 {[%emt 0:32:54]} Nbd7 {[%emt 0:03:57]} 14. Nb3 {[%emt 0:01:03]} O-O {[%emt 0:10:26]} 15. Na5 {[%emt 0:06:00]} Bd5 {[%emt 0:11:51]} 16. Bd2 {[%emt 0:07:48]} Rfb8 {[%emt 0:06:11]} 17. Nxd5 {[%emt 0:08:29]} Nxd5 {[%emt 0:00:30]} 18. Rdc1 {[%emt 0:04:47]} Bf8 {[%emt 0:04:11]} 19. Ra2 {[%emt 0:06:50]} Nc5 {[%emt 0:02:12]} 20. g3 {[%emt 0:03:33]} h6 {[%emt 0:03:37]} 21. Bf3 {[%emt 0:05:10]} Nd3 {[%emt 0:08:52]} 22. Rd1 Nb2 {[%emt 0:00:30]} 23. Rb1 {[%emt 0:03:13]} Nd3 {[%emt 0:00:06]} 24. Rd1 {[%emt 0:03:15]} 1/2-1/2

[Event "87th Spanish Championship 2022"]
[Site "Linares"]
[Date "2022.08.15"]
[Round "6.32"]
[White "Jimenez Fernandez, Rebeca"]
[Black "Vehi Bach, Victor Manuel"]
[Result "1-0"]
[ECO "B42"]
[WhiteElo "1908"]
[BlackElo "2290"]
[Annotator "RC"]
[PlyCount "57"]
[EventDate "2022.08.11"]
[EventType "swiss"]
[EventCountry "ESP"]
[SourceTitle "playchess.com"]
[Source "ChessBase"]
[SourceQuality "1"]
[TimeControl "5400+30"]

1. e4 {[%emt 0:00:02]} c5 {[%emt 0:00:09]} 2. Nf3 {[%emt 0:00:04]} e6 {[%emt 0:00:07]} 3. d4 {[%emt 0:00:04]} cxd4 {[%emt 0:00:05]} 4. Nxd4 {[%emt 0:00:04]} a6 {[%emt 0:00:06]} 5. Bd3 {[%emt 0:00:17]} Nf6 {[%emt 0:00:30]} 6. O-O {[%emt 0:01:37]} d6 {[%emt 0:02:35]} 7. c4 {[%emt 0:02:39]} Nbd7 {[%emt 0:01:17]} 8. Qe2 {[%emt 0:00:58]} Qc7 {[%emt 0:02:17]} 9. b3 {[%emt 0:13:03]} b6 {[%emt 0:02:06]} 10. Bb2 {[%emt 0:01:44]} Bb7 {[%emt 0:02:19]} 11. Nc3 {[%emt 0:02:12]} g6 {[%emt 0:02:12]} 12. Kh1 {[%emt 0:07:53]} Bg7 {[%emt 0:00:13]} 13. f4 {[%emt 0:02:40]} O-O {[%emt 0:01:10]} 14. Rad1 {[%emt 0:18:42]} Rad8 {[%emt 0:09:11]} 15. Bb1 {[%emt 0:05:43]} Qb8 {[%emt 0:03:38]} 16. Nf3 {[%emt 0:08:40]} Rfe8 {[%emt 0:10:36]} 17. Ng5 {[%emt 0:13:43]} h6 {[%emt 0:06:13]} 18. Nf3 {[%emt 0:03:22]} Nh5 {[%emt 0:10:41]} 19. Nh4 {[%emt 0:01:45]} Bc6 {[%emt 0:05:24]} 20. f5 {[%emt 0:01:20]} exf5 {[%emt 0:03:05]} 21. Nxf5 {[%emt 0:00:16]} Ne5 {[%emt 0:02:34]} 22. Nxg7 {[%emt 0:01:00]} Kxg7 {[%emt 0:02:31]} 23. Nd5 {[%emt 0:00:45]} Bxd5 {[%emt 0:02:49]} 24. exd5 {[%emt 0:01:21]} Re7 {[%emt 0:03:47]} 25. Qf2 {[%emt 0:03:11]} Kg8 {[%emt 0:01:08]} 26. Qh4 {[%emt 0:00:35]} Rde8 {[%emt 0:01:15]} 27. g4 {[%emt 0:02:35]} Ng7 {[%emt 0:00:13]} 28. Qxh6 {[%emt 0:01:11]} Qc8 {[%emt 0:00:13]} 29. Rg1 {[%emt 0:02:26]} 1-0

[Event "87th Spanish Championship 2022"]
[Site "Linares"]
[Date "2022.08.15"]
[Round "6.33"]
[White "Gonzalez Castillo, Jose Javier"]
[Black "Esquivias Quintero, Luis Manuel"]
[Result "1/2-1/2"]
[ECO "B00"]
[WhiteElo "2009"]
[BlackElo "2299"]
[Annotator "TA"]
[PlyCount "126"]
[EventDate "2022.08.11"]
[EventType "swiss"]
[EventCountry "ESP"]
[SourceTitle "playchess.com"]
[Source "ChessBase"]
[SourceQuality "1"]
[TimeControl "5400+30"]

{[%evp 9,126,31,30,33,37,29,19,19,28,21,34,21,25,-62,-51,-44,0,-9,0,-20,-30,-41,0,-7,-1,-25,-25,-34,-17,-34,-21,-147,-22,-43,-33,-64,101,95,97,120,179,179,202,203,228,230,225,217,243,202,183,168,225,231,229,227,231,232,229,225,225,198,180,125,135,130,122,0,0,0,0,0,118,105,97,-16,0,-47,-20,-33,-14,-68,0,0,0,0,28,28,28,28,28,0,0,0,0,0,47,0,47,51,284,267,272,-12343,54,53,1065,1043,1260,360,356,183,5624,5263,29957,11616,29968,0,0]} 1. e4 {[%emt 0:00:04]} d6 {[%emt 0:00:33]} 2. g3 {[%emt 0:00:35]} Nf6 {[%emt 0:00:35]} 3. Bg2 {[%emt 0:00:11]} e5 {[%emt 0:00:35]} 4. Ne2 {[%emt 0:00:06]} Be7 {[%emt 0:00:35]} 5. O-O {[%emt 0:00:06]} O-O {[%emt 0:00:03]} 6. d4 {[%emt 0:00:21] B07: Pirc Defence: Miscellaneous Systems.} Re8 {[%emt 0:06:17]} 7. Nbc3 {[%emt 0:00:40]} c6 {[%emt 0:00:21]} 8. a4 {[%emt 0:00:15]} a5 {[%emt 0:01:18]} 9. h3 {[%emt 0:02:35]} Na6 {[%emt 0:00:46]} 10. Be3 {[%emt 0:03:13]} Nb4 {[%emt 0:02:58]} 11. g4 {[%emt 0:02:25] [#]} (11. Re1 $11) 11... h5 $146 {[%emt 0:23:51]} ({Predecessor:} 11... h6 12. Qd2 b6 13. f4 Ba6 14. Rfe1 Nd7 15. Ng3 exf4 16. Bxf4 Bg5 17. Rac1 Bxf4 18. Qxf4 {0-1 (42) Dilmukhametov,A (2293)-Koellner,R (2440) Chess.com INT 2022}) 12. f3 {[%emt 0:07:12]} hxg4 {[%emt 0:03:35]} 13. fxg4 {[%emt 0:04:14]} Nh7 {[%emt 0:03:00][%cal Bf6h7,Bh7f8,Bf8e6,Be6c7][%mdl 32]} 14. Ng3 {[%emt 0:05:35]} Bg5 {[%emt 0:03:32]} 15. Bf2 {[%emt 0:01:37]} Nf8 {[%emt 0:05:42]} 16. Nce2 $1 {[%emt 0:03:18]} g6 {[%emt 0:01:55]} 17. c3 {[%emt 0:01:26]} Na6 {[%emt 0:00:04]} 18. Qb3 {[%emt 0:04:03]} Ne6 {[%emt 0:04:29]} 19. Rad1 {[%emt 0:05:01]} Qe7 {[%emt 0:01:01]} 20. Qb6 {[%emt 0:08:55] [#]} (20. Rd3 $11) 20... Qc7 {[%emt 0:03:03]} (20... Nb4 $1 $17 {[%mdl 512] Strongly threatening ...Ra6.} 21. d5 (21. cxb4 $2 Ra6 $17) (21. dxe5 dxe5) 21... Ra6 22. dxe6 Bxe6 $1 23. cxb4 Rxb6 24. Bxb6 axb4) 21. Qxc7 $11 {[%emt 0:07:03]} Nexc7 {[%emt 0:01:18]} 22. d5 {[%emt 0:02:29][%cal Bd4d5,Bd5d6,Bd6c7][%mdl 32]} Nc5 $2 {[%emt 0:08:16]} (22... Bd7 $15 {stays ahead.}) 23. Bxc5 $16 {[%emt 0:01:41]} dxc5 {[%emt 0:00:15]} 24. d6 {[%emt 0:01:57]} Be6 {[%emt 0:00:05]} 25. dxc7 $18 {[%emt 0:01:18]} Bb3 {[%emt 0:00:03]} 26. Ra1 {[%emt 0:07:16]} Rec8 {[%emt 0:00:42][%cal Be8c8,Bc8c7,Bc7b7][%mdl 32]} 27. Nc1 {[%emt 0:01:50]} (27. Ra3 $6 c4 $16) 27... Be6 {[%emt 0:00:03]} 28. Nd3 {[%emt 0:02:11][%csl LRc5,LRe5]} f6 {[%emt 0:00:03]} 29. Kh1 {[%emt 0:01:23]} (29. Nxc5 Be3+ 30. Kh2 Bxc5 $11) 29... b6 {[%emt 0:00:06]} 30. Bf3 {[%emt 0:08:35]} (30. h4 Bxh4 31. Kh2 Bc4 $11) 30... c4 {[%emt 0:00:47]} (30... Rxc7 $142 31. Nf2 Kf7) 31. Nf2 {[%emt 0:00:52]} ({Inferior is} 31. h4 Bxh4 32. Nf4 exf4 $17) 31... Rxc7 {[%emt 0:00:18]} 32. Rfd1 {[%emt 0:00:53]} Kf7 {[%emt 0:00:35]} 33. Kg2 {[%emt 0:00:20]} Ke7 {[%emt 0:00:04]} 34. Nf1 {[%emt 0:01:22]} b5 {[%emt 0:01:05]} 35. axb5 {[%emt 0:00:50]} cxb5 {[%emt 0:00:00]} 36. Rd5 {[%emt 0:03:48]} Rb7 $16 {[%emt 0:08:15] [#]} 37. Ng3 $1 {[%emt 0:04:08]} a4 {[%emt 0:00:36]} 38. Nf5+ {[%emt 0:01:05]} gxf5 $11 {[%emt 0:00:27]} 39. exf5 {[%emt 0:00:01]} Bxd5 {[%emt 0:00:39]} 40. Bxd5 {[%emt 0:00:02]} Raa7 {[%emt 0:01:31]} (40... Rbb8 $11 {keeps the balance.} 41. Bxa8 Rxa8) 41. Bxb7 $16 {[%emt 0:00:03] White is more active.} Rxb7 {[%mdl 4096] Endgame KRB-KRN} 42. Ne4 {[%emt 0:03:53]} ({White has to play} 42. h4 $1 $16 {[%cal Rh4g5]} Bh6 43. Ne4) 42... Rd7 {[%emt 0:00:46]} 43. Rh1 {[%emt 0:00:36]} (43. h4 $11 {deserves consideration.} Bxh4 44. Rh1) 43... Bh4 $1 $15 {[%emt 0:01:13]} 44. Kf3 $1 {[%emt 0:01:02]} Rd3+ {[%emt 0:03:04]} 45. Ke2 {[%emt 0:00:12]} Bg5 {[%emt 0:00:40]} ({Better is} 45... Ke8 $15) 46. Nxg5 $11 {[%emt 0:00:37]} fxg5 {[%emt 0:00:37] KR-KR} 47. h4 {[%emt 0:00:42][%cal Bh3h4,Bh4h5,Bh5h6][%mdl 32]} Kf6 {[%emt 0:03:24]} 48. h5 {[%emt 0:01:22] aiming for h6.} Kg7 {[%emt 0:00:04]} 49. h6+ {[%emt 0:02:30]} Kh7 {[%emt 0:00:10]} 50. Rh5 {[%emt 0:00:04] Black must now prevent f6.} b4 {[%emt 0:00:49]} 51. cxb4 {[%emt 0:00:56] f6 is the strong threat.} Rb3 {[%emt 0:00:12][%csl LRb2,LRb4]} 52. Kd2 {[%emt 0:00:40]} e4 {[%emt 0:11:13]} (52... Rxb2+ $11 53. Kc3 a3 54. Rxg5 e4) 53. Rxg5 {[%emt 0:00:29]} (53. Kc2 $1 $14) 53... e3+ {[%emt 0:00:03]} (53... Rxb2+ $11 {might be stronger.} 54. Ke3 c3 55. Rg7+ (55. Kxe4 $2 c2 $19) 55... Kxh6 56. Rg6+ Kh7) 54. Kc2 $1 $14 {[%emt 0:00:58]} e2 $2 {[%emt 0:02:23]} (54... Kxh6 $14 55. Rg6+ Kh7) 55. Rg7+ $18 {[%emt 0:00:12]} Kxh6 {[%emt 0:00:04] [#]} 56. Rg6+ $2 {[%emt 0:00:03]} (56. Re7 $1 $18 {[%cal Re7e2]}) 56... Kh7 $14 {[%emt 0:00:22]} 57. Re6 {[%emt 0:00:03]} Rg3 $2 {[%emt 0:00:14][%mdl 8192]} (57... Rxb4 $14 58. Rxe2 c3 59. Re7+ (59. Kxc3 Rxg4 60. Re7+ Kh6 $14) 59... Kh6) 58. Rxe2 $18 {[%emt 0:00:34]} Rxg4 {[%emt 0:00:06]} 59. Rf2 $2 {[%emt 0:00:29]} (59. Kc3 Kg7 60. b5) 59... Rg3 {[%emt 0:01:56]} 60. b5 {[%emt 0:01:50]} (60. Rf4 $142) 60... a3 $2 {[%emt 0:00:44]} (60... Rb3 61. f6 Kg8) 61. bxa3 {[%emt 0:01:27]} Rxa3 {[%emt 0:00:05]} 62. Rf4 {[%emt 0:00:05]} (62. Rf1 $142 Ra7 63. Kc3 Kg7 64. Kxc4 Rb7 65. Kc5 Kf6 66. b6 Rb8 67. Rb1 Kxf5 68. Kc6) 62... Rb3 {[%emt 0:00:07] [#]} 63. Rxc4 $2 {[%emt 0:00:19]} (63. f6 $1 {mates} Kg8 64. f7+ Kf8 65. Rf5 Rd3 66. b6 Rb3 67. Rf6 Re3 68. Rf1 Re2+ 69. Kc3 Re3+ 70. Kxc4) 63... Rxb5 {[%emt 0:00:05] Weighted Error Value: White=0.56/Black=0.54} 1/2-1/2

[Event "87th Spanish Championship 2022"]
[Site "Linares"]
[Date "2022.08.15"]
[Round "6.34"]
[White "Aguado Doncel, Pablo Luis"]
[Black "Guerra Bastida, Diego"]
[Result "1/2-1/2"]
[ECO "A90"]
[WhiteElo "2029"]
[BlackElo "2242"]
[Annotator "TA"]
[PlyCount "117"]
[EventDate "2022.08.11"]
[EventType "swiss"]
[EventCountry "ESP"]
[SourceTitle "playchess.com"]
[Source "ChessBase"]
[SourceQuality "1"]
[TimeControl "5400+30"]

{[%evp 16,117,23,21,18,22,47,24,67,0,28,19,55,-7,39,-22,-29,-85,-89,-145,-145,-155,-145,-147,-145,-153,-155,-153,-105,-100,-45,-39,-11,-80,-83,-82,-92,-129,-54,-106,-35,-37,-41,-134,-134,-134,-134,-134,-102,-127,-102,-102,-102,-102,-102,-152,-152,-151,-145,-145,-145,-145,-145,-153,-153,-153,-154,-153,-260,-206,-145,-145,-145,-414,0,-152,0,0,0,0,0,0,0,0,0,0,0,0,0,-222,-229,-229,0,-7,-7,-8,0,0,0,0,0,-152,0,-127]} 1. d4 {[%emt 0:00:03]} e6 {[%emt 0:00:59]} 2. c4 {[%emt 0:00:06]} f5 {[%emt 0:00:13]} 3. g3 {[%emt 0:00:14]} Nf6 {[%emt 0:00:13]} 4. Bg2 {[%emt 0:00:11]} d5 {[%emt 0:00:34]} 5. Nf3 {[%emt 0:00:08]} c6 {[%emt 0:00:13]} 6. O-O {[%emt 0:00:08]} Bd6 {[%emt 0:00:23]} 7. Nc3 {[%emt 0:00:07]} O-O {[%emt 0:00:23]} 8. Qc2 {[%emt 0:00:15]} Ne4 {[%emt 0:02:24]} 9. Rb1 {[%emt 0:01:25]} b6 {[%emt 0:01:35] A90: Dutch Defence: Miscellaneous and Modern Stonewall (with ...Bd6).} 10. b4 {[%emt 0:04:46]} Ba6 {[%emt 0:05:36]} 11. b5 {[%emt 0:06:48]} cxb5 {[%emt 0:00:18] Threatens to win with ...Nxc3. White has an edge.} 12. Nxb5 {[%emt 0:02:00]} ({But not} 12. cxb5 Qc8 13. Bd2 (13. bxa6 Qxc3 14. Qd3 Rc8 $15) 13... Bb7 $11) (12. Nxe4 $1 $14 dxe4 13. Ng5) 12... Bxb5 {[%emt 0:01:29]} 13. Rxb5 {[%emt 0:00:59] [#]} Qd7 $146 {[%emt 0:02:25]} ({Predecessor:} 13... a6 14. Rb2 Nd7 15. cxd5 Rc8 16. Qa4 exd5 17. Qxa6 Ra8 18. Qb5 Ra5 19. Qb3 Qa8 {1-0 (33) Martin Catalan,J (2045)-Serrat Claver,D (1815) Aragon 2016}) 14. Nd2 {[%emt 0:19:58]} (14. Qd3 $14) 14... Rc8 {[%emt 0:03:14]} (14... Nc6 $11 15. Qb2 (15. Nxe4 Nxd4 16. Qd2 Nxb5 $17) 15... Rac8) 15. Bxe4 {[%emt 0:01:47]} ({Of course not} 15. Nxe4 fxe4 16. Qb1 Rxc4 $15) (15. Qb2 $14) 15... fxe4 {[%emt 0:00:54]} 16. Qb3 {[%emt 0:00:52]} (16. Qb1 $11) 16... Nc6 $36 {[%emt 0:00:35][%mdl 2048] Black has strong initiative.} 17. e3 {[%emt 0:05:05]} (17. Qb2 $142) 17... Na5 {[%emt 0:04:04]} 18. Rxa5 {[%emt 0:00:29]} bxa5 {[%emt 0:00:07]} 19. cxd5 {[%emt 0:00:05]} Rab8 {[%emt 0:08:28]} 20. dxe6 {[%emt 0:01:09]} Qc6 {[%emt 0:00:45]} 21. Qd1 {[%emt 0:01:58]} Bb4 {[%emt 0:00:33]} (21... Be7 $142 $1 22. Qg4 Rb6) 22. Qg4 {[%emt 0:06:28]} Bxd2 {[%emt 0:01:29]} ({Better is} 22... Rb6 $17) 23. Bxd2 $15 {[%emt 0:00:00]} Re8 {[%emt 0:03:32]} 24. Rc1 {[%emt 0:04:23]} (24. Qf5 $11 Qxe6 25. Qxa5) 24... Qxe6 $17 {[%emt 0:00:06]} 25. Qxe6+ {[%emt 0:00:24]} Rxe6 {[%emt 0:00:06]} 26. Bxa5 {[%emt 0:02:05][%mdl 4096] Endgame KRR-KRB} Rb2 {[%emt 0:02:53]} ({Black should try} 26... Ra6 $1 $17 {[%cal Ra6a5]} 27. Rc5 Rb2) 27. d5 {[%emt 0:03:25]} (27. a3 $15) 27... Re7 {[%emt 0:01:22]} (27... Ra6 $17 28. Rc8+ Kf7) 28. a4 {[%emt 0:09:27]} Rd7 {[%emt 0:02:18]} 29. Rc7 {[%emt 0:02:11]} (29. Rd1 $15) 29... Rxc7 $1 {[%emt 0:04:42]} 30. Bxc7 {[%emt 0:00:05] KR-KB} Rd2 {[%emt 0:02:35]} 31. d6 {[%emt 0:00:05]} Kf7 {[%emt 0:02:36][%mdl 1024] Black has strong compensation.} 32. a5 {[%emt 0:00:29]} a6 {[%emt 0:00:08]} 33. g4 {[%emt 0:00:41]} Ke6 {[%emt 0:03:59]} 34. Kg2 {[%emt 0:00:08]} h5 {[%emt 0:02:36][%cal Bh7h5,Bh5h4][%mdl 32]} 35. h3 {[%emt 0:03:37]} (35. gxh5 $142 Rd5 36. f3) 35... h4 $1 {[%emt 0:00:37]} 36. Kg1 {[%emt 0:00:20]} Kd7 {[%emt 0:00:33]} 37. Kg2 {[%emt 0:00:15]} Kc6 {[%emt 0:02:18]} 38. Kg1 {[%emt 0:00:15]} Rd1+ {[%emt 0:00:53]} 39. Kg2 {[%emt 0:00:08]} Kb5 {[%emt 0:01:27]} 40. Kh2 {[%emt 0:00:17]} Kc4 {[%emt 0:00:29] White must now prevent ...Rd5.} 41. Kg2 {[%emt 0:01:06]} Rd5 {[%emt 0:00:24]} 42. Kf1 {[%emt 0:01:13]} Kd3 {[%emt 0:02:15]} 43. Ke1 {[%emt 0:00:34]} g6 $1 {[%emt 0:00:50]} 44. Kd1 $2 {[%emt 0:01:22][%mdl 8192] [#]} (44. Kf1 $17) 44... Kc3+ $2 {[%emt 0:06:07]} (44... Rb5 $1 $19 {[%cal Rb5b1]} 45. Kc1 Rd5) 45. Ke1 $2 {[%emt 0:01:09]} (45. Ke2 $11) 45... Kc2 $2 {[%emt 0:00:18]} (45... Kb4 $17 46. f3 exf3) 46. Ke2 {[%emt 0:00:29]} Rd2+ {[%emt 0:04:48]} 47. Ke1 {[%emt 0:00:06]} Kc1 {[%emt 0:00:58]} 48. Bb8 {[%emt 0:00:23]} Kc2 {[%emt 0:04:11]} 49. Bc7 {[%emt 0:00:37]} g5 {[%emt 0:01:06]} 50. Bb8 {[%emt 0:00:43]} Rd5 {[%emt 0:07:14]} 51. Bc7 {[%emt 0:00:03]} Kd3 {[%emt 0:00:19]} 52. Kd1 $2 {[%emt 0:00:10] [#]} (52. Kf1 $11) 52... Rb5 $1 $19 {[%emt 0:01:00][%cal Rb5b1]} 53. Kc1 {[%emt 0:00:18] Prevents Rb1+. d7 is the strong threat.} Rc5+ $2 {[%emt 0:00:48]} (53... Rb7 $19 54. Bd8 Rd7 55. Bxg5 Rxd6) 54. Kd1 {[%emt 0:00:15] White wants to mate with d7.} Rd5 {[%emt 0:00:13] And now ...Rb5 would win.} 55. Ke1 $1 {[%emt 0:00:53]} Kc3 {[%emt 0:06:17]} 56. Ke2 {[%emt 0:00:41]} Kc2 {[%emt 0:00:08]} 57. Ke1 {[%emt 0:00:09]} Kd3 $2 {[%emt 0:00:16]} (57... Rd1+ $11 58. Ke2 Rd2+ 59. Kf1 Rd5) 58. Kd1 $17 {[%emt 0:00:26]} Rb5 {[%emt 0:02:13][%cal Rb5b1]} 59. Kc1 {[%emt 0:00:08] Inhibits Rb1+.  Weighted Error Value: White=0.36/Black=0.40} 1/2-1/2

[Event "87th Spanish Championship 2022"]
[Site "Linares"]
[Date "2022.08.15"]
[Round "6.35"]
[White "Massanet Massanet, Sebastian"]
[Black "Centeno Mendoza, Julio Stefano"]
[Result "1-0"]
[ECO "C88"]
[WhiteElo "2232"]
[BlackElo "2148"]
[Annotator "NA RC"]
[PlyCount "45"]
[EventDate "2022.08.11"]
[EventType "swiss"]
[EventCountry "ESP"]
[SourceTitle "playchess.com"]
[Source "ChessBase"]
[SourceQuality "1"]
[TimeControl "5400+30"]

1. e4 {[%emt 0:00:05]} e5 {[%emt 0:00:08]} 2. Nf3 {[%emt 0:00:11]} Nc6 {[%emt 0:00:13]} 3. Bb5 {[%emt 0:00:39]} a6 {[%emt 0:00:18]} 4. Ba4 {[%emt 0:00:06]} Nf6 {[%emt 0:00:08]} 5. O-O {[%emt 0:00:10]} Be7 {[%emt 0:00:13]} 6. Re1 {[%emt 0:00:21]} b5 {[%emt 0:00:15]} 7. Bb3 {[%emt 0:00:07]} O-O {[%emt 0:00:14]} 8. a4 {[%emt 0:00:36]} b4 {[%emt 0:00:39]} 9. d4 {[%emt 0:00:47]} Nxd4 {[%emt 0:12:48]} 10. Bxf7+ {[%emt 0:00:56]} Rxf7 {[%emt 0:00:08]} 11. Nxe5 {[%emt 0:00:06]} Rf8 {[%emt 0:00:07]} 12. Qxd4 {[%emt 0:00:07]} Bb7 {[%emt 0:00:11]} 13. Nd2 {[%emt 0:12:28]} Kh8 {[%emt 0:11:50]} 14. h3 {[%emt 0:07:51]} d6 {[%emt 0:05:58]} 15. Nef3 {[%emt 0:02:39]} c5 {[%emt 0:00:15]} 16. Qd3 {[%emt 0:00:28]} d5 {[%emt 0:20:42]} 17. exd5 {[%emt 0:00:33]} Nxd5 {[%emt 0:00:10]} 18. Nc4 {[%emt 0:03:20]} Qc7 {[%emt 0:03:00]} 19. Ng5 {[%emt 0:14:40]} Bxg5 {[%emt 0:00:15]} 20. Bxg5 {[%emt 0:00:05]} h6 {[%emt 0:04:44]} 21. Be3 {[%emt 0:06:44]} Nf4 {[%emt 0:12:58]} 22. Qd6 {[%emt 0:03:01]} Rac8 {[%emt 0:09:41]} 23. Bxf4 {[%emt 0:06:27]} 1-0

[Event "87th Spanish Championship 2022"]
[Site "Linares"]
[Date "2022.08.15"]
[Round "6.36"]
[White "Garcia Gimenez, Santiago"]
[Black "Garcia Garcia, Samuel"]
[Result "1/2-1/2"]
[ECO "E68"]
[WhiteElo "2193"]
[BlackElo "2084"]
[Annotator "NA RC"]
[PlyCount "105"]
[EventDate "2022.08.11"]
[EventType "swiss"]
[EventCountry "ESP"]
[SourceTitle "playchess.com"]
[Source "ChessBase"]
[SourceQuality "1"]
[TimeControl "5400+30"]

1. Nf3 {[%emt 0:00:15]} Nf6 {[%emt 0:00:42]} 2. g3 {[%emt 0:00:05]} g6 {[%emt 0:00:11]} 3. Bg2 {[%emt 0:00:05]} Bg7 {[%emt 0:00:13]} 4. O-O {[%emt 0:00:07]} O-O {[%emt 0:00:14]} 5. d4 {[%emt 0:00:08]} d6 {[%emt 0:00:26]} 6. c4 {[%emt 0:00:07]} Nbd7 {[%emt 0:00:20]} 7. Nc3 {[%emt 0:00:28]} e5 {[%emt 0:00:17]} 8. e4 {[%emt 0:00:08]} exd4 {[%emt 0:00:28]} 9. Nxd4 {[%emt 0:00:07]} Re8 {[%emt 0:00:21]} 10. h3 {[%emt 0:00:06]} Nc5 {[%emt 0:01:27]} 11. Re1 {[%emt 0:00:07]} Bd7 {[%emt 0:00:20]} 12. b4 {[%emt 0:05:24]} Ne6 {[%emt 0:01:58]} 13. Be3 {[%emt 0:06:08]} h6 {[%emt 0:08:38]} 14. f4 {[%emt 0:09:23]} Nh5 {[%emt 0:07:03]} 15. Kh2 {[%emt 0:00:28]} c5 {[%emt 0:07:19]} 16. bxc5 {[%emt 0:05:28]} dxc5 {[%emt 0:00:37]} 17. Nxe6 {[%emt 0:00:08]} Bxe6 {[%emt 0:00:47]} 18. e5 {[%emt 0:02:04]} f6 {[%emt 0:10:51]} 19. g4 {[%emt 0:00:19]} fxe5 {[%emt 0:00:06]} 20. gxh5 {[%emt 0:01:20]} exf4 {[%emt 0:00:10]} 21. Bd2 {[%emt 0:01:52]} Qd3 {[%emt 0:01:20]} 22. Ne4 {[%emt 0:04:31]} Rad8 {[%emt 0:12:33]} 23. Bxf4 {[%emt 0:00:21]} Qxc4 {[%emt 0:00:33]} 24. Qc1 {[%emt 0:02:33]} g5 {[%emt 0:05:42]} 25. Qxc4 {[%emt 0:01:47]} Bxc4 {[%emt 0:00:10]} 26. Rac1 {[%emt 0:00:04]} Bxa2 {[%emt 0:00:35]} 27. Bg3 {[%emt 0:00:17]} b6 {[%emt 0:02:34]} 28. Nd6 {[%emt 0:00:15]} Rxe1 {[%emt 0:01:05]} 29. Rxe1 {[%emt 0:00:07]} Bf8 {[%emt 0:03:10]} 30. Nf5 {[%emt 0:00:13]} Bf7 {[%emt 0:01:14]} 31. Bf3 {[%emt 0:05:55]} c4 {[%emt 0:01:59]} 32. Rd1 {[%emt 0:02:01]} Rc8 {[%emt 0:07:46]} 33. Bg4 {[%emt 0:04:54]} Ra8 {[%emt 0:02:09]} 34. h4 {[%emt 0:00:38]} gxh4 {[%emt 0:03:07]} 35. Bf4 {[%emt 0:00:07]} b5 {[%emt 0:00:23]} 36. Rd7 {[%emt 0:00:32]} b4 {[%emt 0:00:45]} 37. Bxh6 {[%emt 0:01:05]} b3 {[%emt 0:00:58]} 38. Bxf8 {[%emt 0:00:21]} Rxf8 {[%emt 0:02:03]} 39. Nd6 {[%emt 0:10:44]} c3 {[%emt 0:01:46]} 40. Rc7 {[%emt 0:10:16]} c2 {[%emt 0:00:36]} 41. Bf5 {[%emt 0:00:04]} Bxh5 {[%emt 0:03:49]} 42. Be6+ {[%emt 0:00:09]} Kh8 {[%emt 0:00:05]} 43. Bxb3 {[%emt 0:00:05]} Bd1 {[%emt 0:00:08]} 44. Nf7+ {[%emt 0:00:28]} Kg7 {[%emt 0:00:06]} 45. Ne5+ {[%emt 0:01:21]} Kh6 {[%emt 0:00:17]} 46. Nd3 {[%emt 0:03:20]} Rf3 {[%emt 0:01:05]} 47. Nc1 {[%emt 0:00:20]} Kg5 {[%emt 0:00:33]} 48. Rxa7 {[%emt 0:00:21]} Kf4 {[%emt 0:00:18]} 49. Re7 {[%emt 0:01:10]} Re3 {[%emt 0:00:23]} 50. Rf7+ {[%emt 0:00:10]} Ke4 {[%emt 0:00:22]} 51. Rf2 {[%emt 0:00:58]} Rc3 {[%emt 0:01:14]} 52. Rg2 {[%emt 0:01:23]} Kd4 {[%emt 0:00:46]} 53. Bxc2 {[%emt 0:00:50]} 1/2-1/2